bitfinex-derivatives/quotes_ETHF0:USTF0_20241024
["timestamp","ask_amount","ask_price","bid_price","bid_amount"]
[1729800130318,3.84184236,2533.2,2532.5,3.2078]
[1729800130519,3.84184236,2533.2,2532.8,3.2078]
[1729800130713,3.84184236,2533.2,2532.5,3.2078]
[1729800130913,3.84184236,2533.2,2532.2,3.9488]
[1729800131114,3.84184236,2533.2,2532.4,0.39505]
[1729800131321,3.84184236,2533.2,2532.5,0.39503]
[1729800131518,3.84184236,2533.0,2532.5,0.39503]
[1729800131719,39.5078,2533.4,2532.5,3.60283]
[1729800131924,3.84184236,2533.1,2532.7,0.39501]
[1729800132122,39.5078,2533.4,2532.5,3.2078]
[1729800132123,39.5078,2533.4,2532.6,0.39502]
[1729800132423,3.84184236,2533.2,2532.5,3.2078]
[1729800132611,3.84184236,2533.2,2532.8,0.39498]
[1729800132815,3.84184236,2533.2,2532.7,0.39501]
[1729800133027,3.84184236,2533.2,2532.8,0.39499]
[1729800133323,3.2078,2533.4,2532.7,3.948]
[1729800133620,3.84184236,2533.7,2533.1,3.2078]
[1729800133821,3.84184236,2533.7,2533.4,0.3949]
[1729800134021,3.84184236,2533.7,2533.2,4.34212]
[1729800134216,3.84184236,2533.7,2533.3,4.34211]
[1729800134412,3.84184236,2533.7,2533.3,0.39491]
[1729800134616,3.84184236,2533.7,2533.5,3.2078]
[1729800134919,3.84184236,2533.7,2533.6,3.9472]
[1729800136418,3.90814236,2533.7,2533.6,3.9472]
[1729800137624,2.52495935,2533.7,2533.6,3.9472]
[1729800138719,2.52495935,2533.7,2533.5,3.2078]
[1729800138919,3.60267,2533.6,2533.0,3.2078]
[1729800139221,3.2078,2533.6,2533.1,0.39494]
[1729800139427,2.52495935,2533.7,2533.3,3.2078]
[1729800139821,2.52495935,2533.7,2533.4,0.3949]
[1729800140018,2.52495935,2533.7,2533.3,3.2078]
[1729800140425,2.52495935,2533.7,2533.3,3.60271]
[1729800141831,2.52495935,2533.7,2533.4,0.3949]
[1729800142128,2.52495935,2533.7,2533.3,3.60271]
[1729800142719,2.52495935,2533.7,2533.4,3.9472]
[1729800142935,0.0663,2533.7,2533.6,3.60267]
[1729800143325,3.84184236,2534.2,2533.6,7.155]
[1729800143527,3.84184236,2534.2,2533.9,3.2078]
[1729800143829,3.84184236,2534.2,2533.9,3.60262]
[1729800144024,3.84184236,2534.2,2533.9,7.54902]
[1729800145034,4.23662236,2534.2,2533.9,3.2078]
[1729800145531,0.39479,2534.1,2533.9,3.2078]
[1729800145728,4.23662236,2534.2,2533.8,0.39483]
[1729800145933,4.23662236,2534.2,2533.9,0.39482]
[1729800146928,4.23662236,2534.2,2533.9,4.34122]
[1729800147131,4.23662236,2534.2,2533.9,0.39482]
[1729800147328,4.23662236,2534.2,2533.9,4.34122]
[1729800147531,4.23662236,2534.2,2533.9,0.39482]
[1729800147929,3.84184236,2534.2,2533.6,3.2078]
[1729800148131,4.23661236,2534.2,2533.9,0.39481]
[1729800150034,3.84184236,2534.2,2533.9,0.39481]
[1729800150229,0.3948,2534.1,2533.8,0.39482]
[1729800150537,3.84184236,2534.2,2533.6,3.2078]
[1729800150731,3.84184236,2533.7,2533.6,3.2078]
[1729800152137,3.84184236,2533.7,2533.5,0.39487]
[1729800152333,3.41457689,2533.6,2533.4,3.2078]
[1729800152534,0.39484,2533.8,2533.5,0.39487]
[1729800152935,0.39485,2533.7,2533.4,3.60269]
[1729800153236,3.41457689,2533.9,2533.5,0.39488]
[1729800153431,3.41457689,2533.6,2533.5,0.39488]
[1729800153832,3.41457689,2533.8,2533.7,0.39484]
[1729800154342,3.41457689,2533.8,2533.7,4.34124]
[1729800157836,3.2078,2534.1,2533.7,7.54904]
[1729800157837,6.62237689,2534.1,2533.7,7.54904]
[1729800158038,0.39483,2533.9,2533.7,3.2078]
[1729800158239,0.39483,2533.9,2533.8,0.39484]
[1729800158643,6.62237689,2534.1,2534.0,0.39481]
[1729800158946,6.62237689,2534.1,2533.8,3.9464]
[1729800158947,0.39478,2534.2,2534.1,0.39479]
[1729800159239,4.74217689,2534.7,2534.0,3.2078]
[1729800159445,4.74218689,2534.7,2534.5,0.39472]
[1729800159741,36.69471,2534.6,2534.2,0.98693]
[1729800159943,36.3,2534.6,2534.5,0.39473]
[1729800160134,36.69471,2534.6,2534.5,0.39473]
[1729800160331,0.39473,2534.5,2534.4,0.39473]
[1729800160538,36.69472,2534.6,2534.5,0.39473]
[1729800160942,0.39474,2534.5,2534.4,0.39474]
[1729800161138,36.3,2534.6,2534.1,0.98698]
[1729800161444,36.69472,2534.6,2534.5,0.39473]
[1729800164142,36.3,2534.6,2534.5,0.39473]
[1729800164338,36.69471,2534.6,2534.5,0.39473]
[1729800164534,36.3,2534.6,2534.5,0.39473]
[1729800164734,36.69471,2534.6,2534.5,0.39473]
[1729800164947,36.3,2534.6,2534.5,0.39473]
[1729800165640,0.39474,2534.5,2534.3,0.39475]
[1729800165849,3.41457689,2534.4,2534.3,0.39475]
[1729800167636,0.39473,2534.5,2534.1,0.98697]
[1729800167844,0.39473,2534.5,2534.4,0.39474]
[1729800169643,36.3,2534.6,2534.0,4.19481]
[1729800169947,36.69472,2534.6,2534.5,0.39473]
[1729800171655,36.3,2534.6,2534.5,0.39473]
[1729800171848,36.69471,2534.6,2534.5,0.39473]
[1729800172952,36.3,2534.6,2534.5,0.39473]
[1729800173550,0.39466,2535.0,2534.9,0.39467]
[1729800173952,0.39467,2535.0,2534.9,0.39466]
[1729800174256,0.39468,2534.9,2534.8,0.39467]
[1729800175150,36.3,2535.0,2534.9,0.39467]
[1729800175151,36.69466,2535.0,2534.9,0.39467]
[1729800175556,36.69465,2535.0,2534.9,0.39467]
[1729800177647,36.3,2535.0,2534.9,0.39467]
[1729800177854,36.69465,2535.0,2534.9,0.39467]
[1729800179748,36.3,2535.0,2534.9,0.39467]
[1729800180349,36.69465,2535.0,2534.9,0.39467]
[1729800180854,0.3947,2534.7,2534.6,0.3947]
[1729800181049,3.41457689,2534.9,2534.5,3.2078]
[1729800181247,0.3947,2534.7,2534.6,0.39471]
[1729800182354,0.39471,2534.6,2534.5,3.60252]
[1729800182753,0.39471,2534.6,2534.5,0.39472]
[1729800182949,0.39474,2534.5,2534.4,0.39473]
[1729800183254,3.1679794,2534.5,2534.4,0.39473]
[1729800184752,2.02821204,2534.8,2534.0,3.2078]
[1729800184951,1.3079,2534.8,2534.7,0.3947]
[1729800185450,5.2527,2534.8,2534.7,0.3947]
[1729800185655,0.3947,2534.7,2534.6,0.3947]
[1729800186153,6.7188394,2534.7,2534.2,0.98694]
[1729800186354,0.39472,2534.6,2534.5,0.39472]
[1729800186851,4.34032,2534.6,2534.5,0.39472]
[1729800187156,3.9456,2534.6,2534.5,0.39472]
[1729800187666,4.34031,2534.6,2534.5,0.39472]
[1729800189058,0.39474,2534.5,2534.4,0.39473]
[1729800189553,0.39472,2534.6,2534.5,0.39471]
[1729800190057,8.72570147,2534.6,2534.5,0.39471]
[1729800192761,4.38538147,2534.6,2534.5,0.39471]
[1729800192960,4.38538147,2534.6,2534.3,0.9869]
[1729800192961,4.51569,2534.8,2534.7,0.3947]
[1729800193462,7.2889294,2534.8,2534.7,0.3947]
[1729800193858,3.6864394,2534.8,2534.7,0.3947]
[1729800195760,2.7732394,2535.0,2534.9,0.39467]
[1729800195953,2.7732394,2535.0,2534.8,0.39467]
[1729800196153,0.39468,2534.9,2534.8,0.39467]
[1729800196360,2.7732394,2535.0,2534.3,1.6176]
[1729800196557,3.1678994,2535.0,2534.9,0.39467]
[1729800198060,2.7732394,2535.0,2534.9,0.39467]
[1729800200070,0.31182143,2535.5,2535.1,0.98657]
[1729800200362,0.98626,2536.0,2535.6,0.98638]
[1729800200363,3.6023,2536.0,2535.6,0.98638]
[1729800200556,2.7732394,2536.1,2535.6,0.98638]
[1729800200557,3.1677294,2536.1,2535.6,0.98638]
[1729800200756,3.1677294,2536.1,2536.0,0.39449]
[1729800200757,3.1677194,2536.1,2536.0,0.39449]
[1729800201165,6.7164394,2536.1,2536.0,0.39449]
[1729800201366,2.7732394,2536.1,2536.0,0.39449]
[1729800201562,3.1677194,2536.1,2536.0,0.39449]
[1729800201864,2.7732394,2536.1,2536.0,0.39449]
[1729800203267,3.60225,2536.3,2535.9,3.2078]
[1729800203268,2.7732394,2536.3,2535.9,3.2078]
[1729800203458,7.6443394,2536.6,2536.5,0.39442]
[1729800203657,4.4365394,2536.6,2536.5,0.39442]
[1729800203961,3.1676194,2536.8,2536.6,0.39439]
[1729800204162,3.1676194,2536.8,2536.3,4.1939]
[1729800204163,3.1676194,2536.8,2536.7,0.39439]
[1729800204358,2.7732394,2536.8,2536.6,0.39439]
[1729800204567,2.7732394,2536.7,2536.6,0.39439]
[1729800205164,3.1676294,2536.7,2536.5,0.3944]
[1729800205465,3.1676294,2536.7,2536.3,3.2078]
[1729800205664,3.1676294,2536.7,2536.6,0.3944]
[1729800206471,3.1676294,2536.7,2536.5,0.39441]
[1729800206778,2.7732394,2536.7,2536.6,0.3944]
[1729800208071,3.1676294,2536.7,2536.6,0.3944]
[1729800208264,2.7732394,2536.7,2536.6,0.3944]
[1729800209967,6.7156394,2536.7,2536.0,0.98624]
[1729800210267,2.7732394,2536.4,2536.3,0.39445]
[1729800210667,2.7732394,2536.4,2536.2,0.39446]
[1729800210973,2.7732394,2536.4,2536.3,0.39445]
[1729800211566,5.9810394,2536.6,2535.8,4.0303]
[1729800211871,2.7732394,2536.6,2536.5,0.39442]
[1729800214164,3.1676394,2536.6,2536.5,0.39442]
[1729800214573,2.7732394,2536.6,2536.5,0.39442]
[1729800214974,3.1676394,2536.6,2536.5,0.39442]
[1729800215275,3.1676394,2536.6,2536.1,4.19398]
[1729800215276,0.39442,2536.5,2536.3,0.39444]
[1729800215475,2.7732394,2536.6,2536.3,0.39444]
[1729800215769,3.1676494,2536.6,2536.3,0.39445]
[1729800215976,3.1676494,2536.6,2536.5,0.39442]
[1729800218076,2.7732394,2536.6,2536.5,0.39442]
[1729800218269,0.39442,2536.5,2536.4,0.39442]
[1729800218571,0.39444,2536.4,2536.3,0.39444]
[1729800218768,2.7732394,2536.4,2536.1,3.2078]
[1729800219075,2.7732394,2536.2,2536.1,0.39446]
[1729800221272,3.1676994,2536.2,2536.1,0.39446]
[1729800223179,2.7732394,2536.2,2536.1,0.39446]
[1729800223380,0.39446,2536.3,2536.2,0.39446]
[1729800224378,0.39447,2536.2,2536.1,0.39447]
[1729800224879,4.53588207,2536.3,2535.8,5.01661]
[1729800225081,0.39448,2536.1,2536.0,0.39448]
[1729800225578,0.39453,2535.8,2535.7,0.39453]
[1729800225777,2.7732394,2536.2,2535.8,0.39453]
[1729800225778,3.1677694,2535.9,2535.8,0.39453]
[1729800226684,0.39454,2535.8,2535.7,0.39454]
[1729800227077,0.8459,2536.0,2535.9,0.39451]
[1729800228279,4.0068,2536.2,2535.7,1.82465]
[1729800228588,0.39448,2536.1,2536.0,0.39448]
[1729800229083,4.40128,2536.2,2536.1,0.39448]
[1729800230079,0.799,2536.2,2536.1,0.39448]
[1729800231583,0.8162,2536.4,2536.1,0.39448]
[1729800231782,0.8162,2536.4,2536.3,0.39445]
[1729800236384,1.21063,2536.4,2536.3,0.39445]
[1729800236581,0.39449,2536.1,2535.7,1.6148]
[1729800236890,0.39449,2536.1,2536.0,0.39448]
[1729800237495,2.7732394,2536.2,2535.8,0.98631]
[1729800237696,3.1677194,2536.2,2536.1,0.39448]
[1729800242997,2.7732394,2536.2,2536.1,0.39448]
[1729800243292,0.39446,2536.3,2536.2,0.39445]
[1729800243695,4.52219561,2536.3,2536.2,0.39445]
[1729800247699,4.52218561,2536.3,2536.2,0.39445]
[1729800250399,5.80142796,2536.3,2536.2,0.39445]
[1729800251606,5.40697796,2536.3,2536.2,0.39445]
[1729800252301,5.80142796,2536.3,2536.2,0.39445]
[1729800252610,5.40697796,2536.3,2536.2,0.39445]
[1729800253604,5.80142796,2536.3,2536.2,0.39445]
[1729800255407,5.40697796,2536.3,2536.2,0.39445]
[1729800255605,1.27924235,2536.3,2536.2,0.39445]
[1729800256502,1.67369235,2536.3,2536.2,0.39445]
[1729800256707,1.27924235,2536.3,2536.2,0.39445]
[1729800259111,1.67369235,2536.3,2536.2,0.39445]
[1729800260213,1.27924235,2536.3,2536.2,0.39445]
[1729800262213,1.67369235,2536.3,2536.2,0.39445]
[1729800263314,1.27924235,2536.3,2535.9,0.98627]
[1729800263516,1.27924235,2536.0,2535.9,0.39451]
[1729800263709,1.67373235,2536.0,2535.9,0.39451]
[1729800263903,2.45683235,2536.0,2535.9,0.39451]
[1729800264113,2.06234235,2536.0,2535.6,0.98638]
[1729800264409,1.27924235,2535.7,2535.6,0.39456]
[1729800268119,1.67378235,2535.7,2535.6,0.39456]
[1729800268511,1.27924235,2535.7,2535.6,0.39456]
[1729800268910,1.67378235,2535.7,2535.6,0.39456]
[1729800277813,1.67378235,2535.7,2535.0,3.2078]
[1729800277814,5.22324235,2535.7,2535.0,3.2078]
[1729800278015,5.22324235,2535.7,2535.0,3.60245]
[1729800278016,1.27924235,2535.1,2535.0,3.60245]
[1729800278416,1.27924235,2535.2,2535.1,0.39463]
[1729800278812,1.7258,2535.4,2535.1,0.39463]
[1729800279012,1.27924235,2535.4,2535.3,0.3946]
[1729800279516,1.67383235,2535.4,2535.3,0.3946]
[1729800282724,1.27924235,2535.4,2535.3,0.3946]
[1729800283222,1.67383235,2535.4,2535.3,0.3946]
[1729800285023,1.27924235,2535.4,2535.3,0.3946]
[1729800285726,1.67383235,2535.4,2535.3,0.3946]
[1729800286118,4.80325838,2535.8,2535.7,0.39454]
[1729800286119,3.60234,2535.8,2535.7,0.39454]
[1729800286321,6.1608247,2535.8,2535.7,0.39454]
[1729800286733,0.39457,2535.6,2535.5,0.39456]
[1729800287025,1.67381235,2535.6,2535.5,0.39456]
[1729800287218,1.27924235,2535.6,2535.5,0.39456]
[1729800289428,1.67380235,2535.6,2535.5,0.39456]
[1729800290423,1.27924235,2535.6,2535.5,0.39456]
[1729800290925,1.67380235,2535.6,2535.5,0.39456]
[1729800291121,1.27924235,2535.6,2535.5,0.39456]
[1729800291324,1.67380235,2535.6,2535.5,0.39456]
[1729800291525,1.27924235,2535.6,2535.5,0.39456]
[1729800294528,1.67380235,2535.6,2535.5,0.39456]
[1729800296334,1.27924235,2535.6,2535.5,0.39456]
[1729800296528,3.2078,2535.8,2535.7,0.39454]
[1729800296737,4.88157235,2535.8,2535.7,0.39454]
[1729800298035,4.48704235,2535.8,2535.7,0.39454]
[1729800298440,1.27924235,2535.8,2535.7,0.39454]
[1729800299033,1.67377235,2535.8,2535.7,0.39454]
[1729800299235,1.27924235,2535.8,2535.7,0.39454]
[1729800300634,1.67377235,2535.8,2535.7,0.39454]
[1729800300832,1.27924235,2535.8,2535.7,0.39454]
[1729800301037,0.39455,2535.7,2535.6,0.39454]
[1729800301242,1.67379235,2535.7,2535.6,0.39454]
[1729800301444,1.27924235,2535.7,2535.6,0.39454]
[1729800302433,1.67378235,2535.7,2535.6,0.39454]
[1729800308044,0.39458,2535.6,2535.5,0.39456]
[1729800308253,1.67382235,2535.6,2535.5,0.39456]
[1729800309443,1.67382235,2535.6,2535.0,1.97322]
[1729800309444,0.98644,2535.5,2535.0,4.19443]
[1729800309651,1.67387235,2535.1,2535.0,3.60245]
[1729800309847,1.27924235,2535.1,2535.0,3.60245]
[1729800312047,1.67387235,2535.1,2535.0,3.60245]
[1729800312255,1.67387235,2535.1,2535.0,0.39465]
[1729800315046,1.27924235,2535.1,2535.0,0.39465]
[1729800315554,1.67387235,2535.1,2535.0,0.39465]
[1729800315955,1.27924235,2535.1,2535.0,0.39465]
[1729800316544,0.7465,2535.5,2535.0,0.39465]
[1729800316545,3.60236,2535.6,2535.0,8.43184235]
[1729800316742,1.27924235,2535.4,2535.3,1.67384235]
[1729800316944,1.27924235,2535.4,2535.3,2.45684235]
[1729800317246,1.27924235,2535.4,2535.3,1.1776]
[1729800318749,1.67383235,2535.4,2535.3,0.3946]
[1729800320053,0.39462,2535.3,2535.2,0.39461]
[1729800320249,1.67386235,2535.3,2535.2,0.39461]
[1729800323253,1.27924235,2535.3,2534.8,0.98668]
[1729800323464,1.27924235,2534.9,2534.8,0.39468]
[1729800326454,1.94652,2535.2,2535.1,0.39463]
[1729800326652,2.83114235,2535.2,2535.1,0.39463]
[1729800327357,3.22576235,2535.2,2535.1,0.39463]
[1729800328155,2.83114235,2535.2,2535.1,0.39463]
[1729800329062,3.22576235,2535.2,2535.1,0.39463]
[1729800329462,2.83114235,2535.2,2535.1,0.39463]
[1729800329663,1.27924235,2535.2,2535.1,0.39463]
[1729800336562,1.5757,2535.5,2534.9,2.77784235]
[1729800336766,1.97027,2535.5,2535.4,0.39459]
[1729800336971,3.24951235,2535.5,2535.4,0.39459]
[1729800337661,2.85494235,2535.5,2535.4,0.39459]
[1729800340970,3.24951235,2535.5,2535.4,0.39459]
[1729800341665,2.85494235,2535.5,2535.4,0.39459]
[1729800341871,3.24951235,2535.5,2535.4,0.39459]
[1729800342465,1.5757,2535.5,2535.4,0.39459]
[1729800342668,1.515,2535.8,2535.7,0.39453]
[1729800342864,2.79424235,2535.8,2535.7,0.39453]
[1729800343369,2.79424235,2535.8,2535.7,4.33853]
[1729800343370,1.27924235,2535.8,2535.7,4.33853]
[1729800343563,1.27924235,2535.8,2535.7,0.39453]
[1729800343871,1.27924235,2535.8,2535.7,4.33853]
[1729800349470,0.31667235,2536.1,2535.7,3.944]
[1729800349776,1.27924235,2535.8,2535.7,0.39454]
[1729800351970,1.27924235,2535.8,2535.7,4.33854]
[1729800352282,1.27924235,2535.8,2535.7,0.39454]
[1729800353076,1.27924235,2535.8,2535.7,4.33854]
[1729800353983,1.27924235,2535.8,2535.7,0.39454]
[1729800354880,1.27924235,2535.8,2535.7,0.51793327]
[1729800355276,1.27924235,2535.8,2535.7,6.06604215]
[1729800356580,1.27924235,2535.8,2535.7,5.07889822]
[1729800356778,1.27924235,2535.8,2535.7,4.46193327]
[1729800356973,5.43025638,2536.2,2536.1,0.39448]
[1729800357177,6.70949873,2536.2,2536.1,0.39448]
[1729800359085,3.50169873,2536.2,2536.1,0.39448]
[1729800359286,6.70949873,2536.2,2536.1,0.39448]
[1729800360877,5.43025638,2536.2,2536.1,0.39448]
[1729800361077,6.70949873,2536.2,2536.1,0.39448]
[1729800364384,10.25822873,2536.2,2535.6,4.19416]
[1729800364690,1.67377235,2535.9,2535.8,0.39451]
[1729800366291,1.27924235,2535.9,2535.8,0.39451]
[1729800368690,1.67375235,2535.9,2535.8,0.39451]
[1729800368886,1.27924235,2535.9,2535.8,0.39451]
[1729800370491,4.7228,2536.2,2535.7,0.7849]
[1729800370788,3.2078,2536.9,2536.2,0.98615]
[1729800370991,4.0076,2536.9,2536.8,0.39435]
[1729800371199,5.28684235,2536.9,2536.8,0.39435]
[1729800372190,2.07904235,2536.9,2536.8,0.39435]
[1729800374897,0.7998,2536.9,2536.8,1.67359235]
[1729800375192,2.07904235,2536.9,2536.8,1.67359235]
[1729800375491,2.07904235,2536.9,2536.8,0.39435]
[1729800378699,2.07904235,2536.9,2536.8,1.13440536]
[1729800379795,0.7998,2536.9,2536.8,1.13440536]
[1729800379995,2.07904235,2536.9,2536.8,1.13440536]
[1729800380897,2.07904235,2536.9,2536.8,2.41364771]
[1729800381092,0.7943,2537.0,2536.9,0.39435]
[1729800381400,3.2078,2537.3,2537.2,0.39431]
[1729800381899,4.48704235,2537.3,2537.2,0.39431]
[1729800384398,0.39435,2537.0,2536.9,0.39434]
[1729800384602,1.67359235,2537.0,2536.9,0.39434]
[1729800400007,0.7308,2537.1,2537.0,0.39434]
[1729800400214,2.40436235,2537.1,2537.0,0.39434]
[1729800404711,2.01004235,2537.1,2537.0,0.39434]
[1729800404917,2.40436235,2537.1,2537.0,0.39434]
[1729800409116,0.39438,2536.9,2536.8,0.39436]
[1729800409319,1.67362235,2536.9,2536.8,0.39436]
[1729800412918,0.39439,2536.8,2536.7,0.39437]
[1729800413115,2.20233235,2536.8,2536.7,0.39437]
[1729800415315,2.20233235,2536.8,2536.5,0.3944]
[1729800415316,0.3944,2536.6,2536.5,0.3944]
[1729800415515,1.67364235,2536.6,2536.5,0.3944]
[1729800421424,1.67364235,2536.6,2536.5,1.0111845]
[1729800422525,1.67364235,2536.6,2536.5,0.3944]
[1729800425027,1.67364235,2536.6,2536.5,1.67364235]
[1729800425028,0.3944,2536.6,2536.5,1.67364235]
[1729800425819,0.3944,2536.6,2536.5,1.79699858]
[1729800426521,0.3944,2536.6,2536.5,2.413794]
[1729800426727,1.67364235,2536.6,2536.5,2.413794]
[1729800427427,1.67364235,2536.6,2536.5,1.13455165]
[1729800427728,1.67364235,2536.6,2536.5,0.3944]
[1729800429622,0.3944,2536.6,2536.5,0.3944]
[1729800429821,2.68163235,2536.7,2536.6,0.3944]
[1729800432233,1.008,2536.7,2536.6,1.67364235]
[1729800432427,4.48704235,2536.9,2536.6,1.27924235]
[1729800432625,5.29120235,2536.9,2536.8,0.39437]
[1729800432830,4.89684235,2536.9,2536.8,0.39437]
[1729800433029,3.2078,2536.9,2536.8,1.67361235]
[1729800433825,1.27924235,2536.9,2536.8,1.67361235]
[1729800434430,0.39433,2537.1,2537.0,0.39434]
[1729800434627,1.67357235,2537.1,2537.0,0.39434]
[1729800437329,0.39436,2537.0,2536.9,0.39434]
[1729800437633,1.67360235,2537.0,2536.9,0.39434]
[1729800439928,0.98593,2536.8,2536.4,0.39442]
[1729800440128,1.27924235,2536.6,2536.4,1.27924235]
[1729800440332,1.67365235,2536.6,2536.5,0.3944]
[1729800448745,0.9399,2536.7,2536.5,1.27924235]
[1729800449040,0.9399,2536.7,2536.6,1.67364235]
[1729800450334,0.4295,2536.7,2536.6,1.67364235]
[1729800450536,1.27924235,2536.8,2536.7,0.39439]
[1729800450733,1.67361235,2536.8,2536.7,0.39439]
[1729800450943,1.27924235,2536.8,2536.7,0.39439]
[1729800451136,1.67361235,2536.8,2536.7,0.39439]
[1729800451334,3.6194,2536.9,2536.8,0.39437]
[1729800451544,5.29299235,2536.9,2536.8,0.39437]
[1729800453542,0.839,2537.1,2536.8,1.27924235]
[1729800453743,0.839,2537.1,2536.9,0.39434]
[1729800453744,0.39434,2537.0,2536.9,0.39434]
[1729800453941,0.39434,2537.0,2536.9,1.01104324]
[1729800453942,1.67358235,2537.0,2536.9,1.01104324]
[1729800454852,1.67358235,2537.0,2536.9,0.39434]
[1729800456443,1.67358235,2537.0,2536.9,0.64102129]
[1729800456650,1.67358235,2537.0,2536.9,0.83836632]
[1729800457039,1.67358235,2537.0,2536.9,0.39434]
[1729800457550,1.67358235,2537.0,2536.9,1.01104997]
[1729800458348,1.67358235,2537.0,2536.9,0.39434]
[1729800458547,1.67358235,2537.0,2536.9,1.01104006]
[1729800459548,1.67358235,2537.0,2536.9,0.39434]
[1729800461151,1.67358235,2537.0,2536.9,0.96170972]
[1729800461754,1.27924235,2537.0,2536.9,0.39434]
[1729800462057,1.67358235,2537.0,2536.9,0.39434]
[1729800464858,1.67358235,2537.0,2536.9,0.96170724]
[1729800465651,1.67358235,2537.0,2536.9,0.39434]
[1729800466353,3.2078,2537.2,2536.9,1.27924235]
[1729800466656,3.60207,2537.5,2537.4,0.39428]
[1729800467758,4.88131235,2537.5,2537.4,0.39428]
[1729800467959,0.39429,2537.4,2537.3,0.39428]
[1729800468255,1.67353235,2537.4,2537.3,0.39428]
[1729800471757,3.2078,2537.5,2537.4,0.39428]
[1729800471961,1.67350235,2537.5,2537.4,0.39428]
[1729800476154,1.67350235,2537.5,2537.4,0.96154496]
[1729800478965,1.67350235,2537.5,2537.4,0.71490802]
[1729800479164,1.67350235,2537.5,2537.4,0.96156327]
[1729800479864,1.67350235,2537.5,2537.4,0.39428]
[1729800480271,1.67350235,2537.5,2537.4,0.96155648]
[1729800480571,14.33176186,2537.5,2537.4,0.56727648]
[1729800480959,13.93750186,2537.5,2536.7,0.4251]
[1729800481275,1.67361235,2536.8,2536.7,0.39437]
[1729800481461,0.39439,2536.7,2536.6,3.6022]
[1729800481665,0.3944,2536.6,2536.5,0.81951]
[1729800481867,1.27924235,2536.6,2536.5,0.81951]
[1729800482063,1.67364235,2536.6,2536.5,0.39441]
[1729800483973,10.85988652,2536.6,2536.0,4.19404]
[1729800484178,1.27924235,2536.1,2536.0,4.88153235]
[1729800485371,1.27924235,2536.1,2536.0,4.48704235]
[1729800485575,1.27924235,2536.1,2536.0,4.88153235]
[1729800486078,1.27924235,2536.1,2536.0,3.60229]
[1729800486672,1.27924235,2536.1,2536.0,4.88153235]
[1729800489485,2.11944235,2536.2,2536.0,4.48704235]
[1729800489783,2.11944235,2536.2,2536.1,1.67372235]
[1729800489977,0.4078,2536.2,2536.1,1.67372235]
[1729800490470,1.67369235,2536.3,2536.1,1.27924235]
[1729800490676,0.39445,2536.3,2536.2,0.39446]
[1729800490876,1.27924235,2536.3,2536.2,0.39446]
[1729800491076,3.60219,2536.7,2536.6,0.3944]
[1729800491285,5.29423235,2536.7,2536.6,0.3944]
[1729800492987,4.89984235,2536.7,2536.6,0.3944]
[1729800493282,5.29423235,2536.7,2536.6,0.3944]
[1729800493476,4.48704235,2536.7,2536.6,1.67364235]
[1729800493783,4.48704235,2536.7,2536.3,0.39444]
[1729800493784,0.39445,2536.4,2536.3,0.39444]
[1729800494083,1.67369235,2536.4,2536.3,0.39444]
[1729800494276,0.78548664,2536.4,2536.3,1.01129938]
[1729800494976,1.17993664,2536.4,2536.3,1.01129938]
[1729800495576,1.17993664,2536.4,2536.3,0.61685938]
[1729800496177,1.17991664,2536.4,2536.3,0.12337406]
[1729800496380,1.17991664,2536.4,2536.3,0.96197068]
[1729800496990,0.78548664,2536.4,2536.3,1.57883923]
[1729800497184,0.78548664,2536.4,2536.3,0.96197068]
[1729800498087,1.17991664,2536.4,2536.3,0.96197068]
[1729800498987,1.17991664,2536.4,2536.3,0.5918485]
[1729800499491,1.17991664,2536.4,2536.3,0.39445]
[1729800501685,0.78548664,2536.4,2536.3,0.39445]
[1729800501887,1.17991664,2536.4,2536.3,0.39445]
[1729800502292,0.78548664,2536.4,2536.3,0.39445]
[1729800502687,1.27924235,2536.4,2536.3,0.39445]
[1729800503793,1.27924235,2536.4,2536.3,1.01130156]
[1729800503991,1.67367235,2536.4,2536.3,1.01130156]
[1729800504185,0.8761,2536.6,2536.5,0.39442]
[1729800504380,0.8761,2536.6,2536.5,1.67366235]
[1729800504381,1.27924235,2536.6,2536.5,1.67366235]
[1729800504586,1.27924235,2536.6,2536.5,0.39442]
[1729800505895,1.67364235,2536.6,2536.5,0.39442]
[1729800506088,1.27924235,2536.6,2536.5,0.39442]
[1729800507487,1.67364235,2536.6,2536.5,0.39442]
[1729800507692,1.27924235,2536.6,2536.5,0.39442]
[1729800510201,1.27924235,2536.6,2536.5,1.01122235]
[1729800510897,1.27924235,2536.6,2536.5,1.18425574]
[1729800511191,1.27924235,2536.6,2536.5,2.24111574]
[1729800511390,3.2078,2536.7,2536.6,0.3944]
[1729800511797,3.2078,2536.7,2536.6,0.801]
[1729800512098,4.48704235,2536.7,2536.6,0.801]
[1729800512697,4.48704235,2536.7,2536.6,1.36845339]
[1729800514498,4.88143235,2536.7,2536.6,2.97195758]
[1729800514799,4.48704235,2536.7,2536.6,2.56535758]
[1729800515299,4.88143235,2536.7,2536.6,1.99790419]
[1729800515495,4.48704235,2536.7,2536.6,1.99790419]
[1729800515699,1.27924235,2536.7,2536.6,1.99790419]
[1729800516099,1.27924235,2536.7,2536.6,0.3944]
[1729800516100,1.67363235,2536.7,2536.6,0.3944]
[1729800516298,1.27924235,2536.7,2536.6,0.3944]
[1729800517696,1.67363235,2536.7,2536.6,0.3944]
[1729800518098,1.27924235,2536.7,2536.6,0.3944]
[1729800518394,1.27924235,2536.7,2536.6,0.96183181]
[1729800519499,1.27924235,2536.7,2536.6,0.76446422]
[1729800519804,1.67363235,2536.7,2536.6,0.51775474]
[1729800521304,1.27924235,2536.7,2536.6,0.3944]
[1729800522597,1.67363235,2536.7,2536.6,0.3944]
[1729800531099,1.67363235,2536.7,2536.6,1.0111759]
[1729800531703,1.67363235,2536.7,2536.6,0.3944]
[1729800533704,1.27924235,2536.7,2536.6,0.3944]
[1729800534103,0.4121,2536.8,2536.7,0.39439]
[1729800534104,1.69134235,2536.8,2536.7,0.39439]
[1729800534309,0.4053,2537.0,2536.7,1.27924235]
[1729800534606,3.2078,2537.6,2536.9,5.47291235]
[1729800534816,1.27924235,2537.2,2537.1,1.27924235]
[1729800535006,1.27924235,2537.2,2537.1,1.67356235]